[Event "CZE-ch Youth B14 2022"]
[Site "Luhacovice"]
[Date "2022.03.18"]
[Round "8.5"]
[White "Jasso, Matej"]
[Black "Setina, Vaclav"]
[Result "1/2-1/2"]
[ECO "D00"]
[WhiteElo "1726"]
[BlackElo "1881"]
[Annotator "NA"]
[PlyCount "81"]
[EventDate "2022.03.12"]
[EventType "swiss"]
[EventCountry "CZE"]
[SourceTitle "playchess.com"]
[Source "ChessBase"]
[SourceQuality "1"]
[TimeControl "40/5400+30:1800+30"]

1. d4 {[%emt 0:00:38]} d5 {[%emt 0:00:05]} 2. Bf4 {[%emt 0:00:15]} Bf5 {[%emt 0:00:11]} 3. e3 {[%emt 0:00:11]} Nf6 {[%emt 0:00:31]} 4. Nf3 {[%emt 0:00:51]} e6 {[%emt 0:00:10]} 5. Be2 {[%emt 0:00:29]} Be7 {[%emt 0:00:59]} 6. Nbd2 {[%emt 0:03:57]} O-O {[%emt 0:00:18]} 7. O-O {[%emt 0:00:48]} h6 {[%emt 0:00:35]} 8. h3 {[%emt 0:01:00]} c5 {[%emt 0:01:33]} 9. c4 {[%emt 0:06:25]} Nc6 {[%emt 0:03:00]} 10. Rc1 {[%emt 0:00:55]} cxd4 {[%emt 0:01:16]} 11. exd4 {[%emt 0:03:07]} dxc4 {[%emt 0:02:28]} 12. Nxc4 {[%emt 0:01:20]} Be4 {[%emt 0:27:56]} 13. Nce5 {[%emt 0:04:38]} Bd6 {[%emt 0:10:50]} 14. Nxc6 $11 {[%emt 0:04:55]} Bxc6 {[%emt 0:01:33]} 15. Ne5 {[%emt 0:02:33]} Bd5 {[%emt 0:02:11]} 16. Bf3 {[%emt 0:08:07]} Qe7 {[%emt 0:03:06]} 17. Re1 {[%emt 0:11:07]} Rfd8 {[%emt 0:05:10]} 18. Bxd5 {[%emt 0:10:54]} Nxd5 {[%emt 0:00:40]} 19. Bg3 {[%emt 0:00:57]} Bc7 {[%emt 0:09:45]} 20. Qg4 {[%emt 0:06:38]} Qg5 {[%emt 0:15:21]} 21. Qxg5 {[%emt 0:03:28]} hxg5 {[%emt 0:00:01]} 22. Nxf7 {[%emt 0:00:26]} Kxf7 {[%emt 0:03:49]} 23. Bxc7 {[%emt 0:00:13]} Rd7 {[%emt 0:00:25]} 24. Be5 {[%emt 0:04:38]} Nb4 {[%emt 0:01:26]} 25. Rc4 {[%emt 0:00:09]} Nd3 {[%emt 0:01:43]} 26. Re2 {[%emt 0:00:12]} b5 {[%emt 0:02:04]} 27. Rc3 {[%emt 0:01:41]} Nf4 {[%emt 0:02:11]} 28. Rf3 {[%emt 0:01:36]} Ke7 {[%emt 0:02:28]} 29. Bxf4 {[%emt 0:00:25]} gxf4 {[%emt 0:00:04]} 30. Rxf4 {[%emt 0:00:06]} Rc8 {[%emt 0:00:25]} 31. Re5 {[%emt 0:05:13]} Rd5 {[%emt 0:02:33]} 32. Rfe4 {[%emt 0:01:32]} Rxe5 {[%emt 0:00:33]} 33. Rxe5 {[%emt 0:00:07]} a6 {[%emt 0:00:50]} 34. Rc5 {[%emt 0:00:42]} Rd8 {[%emt 0:00:36]} 35. Kf1 {[%emt 0:02:43]} Rxd4 {[%emt 0:00:03]} 36. Ke2 {[%emt 0:00:07]} Rd6 {[%emt 0:01:07]} 37. Ke3 {[%emt 0:01:02]} Kf6 {[%emt 0:00:09]} 38. a4 {[%emt 0:01:18]} bxa4 {[%emt 0:00:15]} 39. Ra5 {[%emt 0:00:06]} Rb6 {[%emt 0:00:04]} 40. Rxa4 {[%emt 0:00:17]} Rb3+ {[%emt 0:00:09]} 41. Ke4 {[%emt 0:31:19]} 1/2-1/2

[Event "CZE-ch Youth B14 2022"]
[Site "Luhacovice"]
[Date "2022.03.18"]
[Round "8.6"]
[White "Juhanak, Daniel"]
[Black "Zrubek, Dan"]
[Result "1-0"]
[ECO "B76"]
[WhiteElo "1688"]
[BlackElo "1478"]
[Annotator "NA"]
[PlyCount "73"]
[EventDate "2022.03.12"]
[EventType "swiss"]
[EventCountry "CZE"]
[SourceTitle "playchess.com"]
[Source "ChessBase"]
[SourceQuality "1"]
[TimeControl "40/5400+30:1800+30"]

1. e4 {[%emt 0:00:02]} c5 {[%emt 0:00:05]} 2. Nf3 {[%emt 0:00:07]} d6 {[%emt 0:00:07]} 3. d4 {[%emt 0:00:09]} cxd4 {[%emt 0:00:17]} 4. Nxd4 {[%emt 0:00:02]} Nf6 {[%emt 0:00:37]} 5. Nc3 {[%emt 0:00:02]} g6 {[%emt 0:00:25]} 6. Be3 {[%emt 0:00:16]} Bg7 {[%emt 0:00:30]} 7. f3 {[%emt 0:00:22]} O-O {[%emt 0:00:14]} 8. Qd2 {[%emt 0:00:08]} Nc6 {[%emt 0:00:25]} 9. O-O-O {[%emt 0:00:17]} d5 {[%emt 0:01:05]} 10. Qe1 {[%emt 0:00:27]} e5 {[%emt 0:00:51]} 11. Nxc6 {[%emt 0:00:04]} bxc6 {[%emt 0:00:09]} 12. exd5 {[%emt 0:00:14]} Nxd5 {[%emt 0:01:51]} 13. Bc4 {[%emt 0:00:08]} Be6 {[%emt 0:02:40]} 14. Kb1 {[%emt 0:00:05]} Qc7 {[%emt 0:23:51]} 15. Nxd5 {[%emt 0:01:24]} cxd5 {[%emt 0:00:09]} 16. Bxd5 {[%emt 0:00:40]} Bxd5 {[%emt 0:09:09]} 17. Rxd5 {[%emt 0:00:02]} Qb7 {[%emt 0:04:02]} 18. Qa5 {[%emt 0:19:22]} Rab8 {[%emt 0:05:45]} 19. b3 {[%emt 0:05:15]} Rfc8 {[%emt 0:04:42]} 20. Rhd1 {[%emt 0:04:12]} Bf6 {[%emt 0:01:35]} 21. Bxa7 {[%emt 0:23:29]} Ra8 {[%emt 0:02:34]} 22. Rd7 {[%emt 0:01:28]} Qc6 {[%emt 0:04:53]} 23. c4 {[%emt 0:08:39]} Rcb8 {[%emt 0:01:31]} 24. Qd5 {[%emt 0:01:53]} Qxd5 {[%emt 0:02:15]} 25. R1xd5 {[%emt 0:01:47]} Re8 {[%emt 0:00:23]} 26. c5 {[%emt 0:08:32]} e4 {[%emt 0:00:47]} 27. fxe4 {[%emt 0:01:39]} Rxe4 {[%emt 0:00:06]} 28. Bb6 {[%emt 0:02:55]} Re1+ {[%emt 0:01:45]} 29. Rd1 {[%emt 0:01:25]} Re2 {[%emt 0:00:07]} 30. R7d2 {[%emt 0:00:56]} Re6 {[%emt 0:00:26]} 31. a4 {[%emt 0:03:59]} Re4 {[%emt 0:00:45]} 32. a5 {[%emt 0:01:18]} Kg7 {[%emt 0:00:47]} 33. c6 {[%emt 0:04:39]} Ree8 {[%emt 0:00:30]} 34. c7 {[%emt 0:01:11]} Rac8 {[%emt 0:00:33]} 35. Rd8 {[%emt 0:01:37]} Kf8 {[%emt 0:00:38]} 36. Rxc8 {[%emt 0:00:12]} Rxc8 {[%emt 0:00:07]} 37. Rd8+ {[%emt 0:00:08]} 1-0

[Event "CZE-ch Youth B14 2022"]
[Site "Luhacovice"]
[Date "2022.03.18"]
[Round "8.7"]
[White "Hozda, Max"]
[Black "Babula, Matej"]
[Result "1/2-1/2"]
[ECO "E32"]
[WhiteElo "1901"]
[BlackElo "1753"]
[Annotator "NA"]
[PlyCount "63"]
[EventDate "2022.03.12"]
[EventType "swiss"]
[EventCountry "CZE"]
[SourceTitle "playchess.com"]
[Source "ChessBase"]
[SourceQuality "1"]
[TimeControl "40/5400+30:1800+30"]

1. d4 {[%emt 0:00:07]} Nf6 {[%emt 0:00:04]} 2. c4 {[%emt 0:00:07]} e6 {[%emt 0:00:03]} 3. Nc3 {[%emt 0:00:05]} Bb4 {[%emt 0:00:04]} 4. Qc2 {[%emt 0:00:06]} O-O {[%emt 0:00:12]} 5. a3 {[%emt 0:00:03]} Bxc3+ {[%emt 0:00:04]} 6. Qxc3 {[%emt 0:00:02]} Ne4 {[%emt 0:00:07]} 7. Qc2 {[%emt 0:02:08]} f5 {[%emt 0:00:05]} 8. g3 {[%emt 0:02:09]} b6 {[%emt 0:00:04]} 9. Bg2 {[%emt 0:00:09]} Bb7 {[%emt 0:00:01]} 10. Nf3 {[%emt 0:00:37]} Nf6 {[%emt 0:02:24]} 11. b4 {[%emt 0:08:10]} Be4 {[%emt 0:01:39]} 12. Qb3 {[%emt 0:01:08]} d6 {[%emt 0:08:22]} 13. O-O {[%emt 0:02:29]} Nbd7 {[%emt 0:08:53]} 14. Rd1 {[%emt 0:31:14]} Qe8 {[%emt 0:07:55]} 15. Bb2 {[%emt 0:01:10]} Qh5 $11 {[%emt 0:11:44]} 16. Qe3 {[%emt 0:19:18]} h6 {[%emt 0:04:01]} 17. h3 {[%emt 0:00:52]} Rfe8 {[%emt 0:02:53]} 18. Nd2 {[%emt 0:01:49]} Bxg2 {[%emt 0:00:54]} 19. Kxg2 {[%emt 0:00:08]} e5 {[%emt 0:02:43]} 20. Qf3 {[%emt 0:04:16]} Qxf3+ {[%emt 0:04:31]} 21. exf3 {[%emt 0:01:45]} c5 {[%emt 0:07:26]} 22. dxc5 {[%emt 0:03:58]} dxc5 {[%emt 0:00:22]} 23. Nb3 {[%emt 0:01:00]} a5 {[%emt 0:11:17]} 24. bxa5 {[%emt 0:03:57]} bxa5 {[%emt 0:00:01]} 25. Bc3 {[%emt 0:00:20]} a4 {[%emt 0:00:31]} 26. Na5 {[%emt 0:01:31]} e4 {[%emt 0:05:41]} 27. Nb7 {[%emt 0:04:29]} exf3+ {[%emt 0:00:41]} 28. Kxf3 {[%emt 0:01:08]} Ne5+ {[%emt 0:00:29]} 29. Bxe5 {[%emt 0:01:45]} Rxe5 {[%emt 0:00:02]} 30. Rab1 {[%emt 0:02:27]} Ne4 {[%emt 0:03:39]} 31. Rb6 {[%emt 0:02:34]} Rae8 {[%emt 0:03:15]} 32. Rd7 1/2-1/2

[Event "CZE-ch Youth B14 2022"]
[Site "Luhacovice"]
[Date "2022.03.18"]
[Round "8.8"]
[White "Svoboda, Daniel"]
[Black "Vysinsky, Otakar"]
[Result "1/2-1/2"]
[ECO "C47"]
[WhiteElo "1619"]
[BlackElo "1534"]
[Annotator "NA"]
[PlyCount "94"]
[EventDate "2022.03.12"]
[EventType "swiss"]
[EventCountry "CZE"]
[SourceTitle "playchess.com"]
[Source "ChessBase"]
[SourceQuality "1"]
[TimeControl "40/5400+30:1800+30"]

1. e4 {[%emt 0:00:05]} e5 {[%emt 0:00:01]} 2. Nf3 {[%emt 0:00:11]} Nc6 {[%emt 0:00:04]} 3. Nc3 {[%emt 0:00:39]} Nf6 {[%emt 0:00:02]} 4. d4 {[%emt 0:00:08]} exd4 {[%emt 0:00:06]} 5. Nxd4 {[%emt 0:00:05]} Bb4 {[%emt 0:00:08]} 6. Nxc6 {[%emt 0:00:08]} bxc6 {[%emt 0:00:08]} 7. Bd3 {[%emt 0:00:08]} d6 {[%emt 0:00:22]} 8. Bg5 {[%emt 0:02:25]} h6 {[%emt 0:00:09]} 9. Bh4 {[%emt 0:00:16]} Be6 {[%emt 0:00:51]} 10. O-O {[%emt 0:01:12]} g5 {[%emt 0:00:30]} 11. Bg3 {[%emt 0:01:01]} h5 {[%emt 0:00:50]} 12. h4 {[%emt 0:06:11]} Ng4 {[%emt 0:05:46]} 13. hxg5 {[%emt 0:16:52]} Qxg5 {[%emt 0:04:37]} 14. Qc1 {[%emt 0:04:42]} Qg7 {[%emt 0:02:49]} 15. Bh4 {[%emt 0:09:01]} Rg8 {[%emt 0:03:55]} 16. g3 {[%emt 0:04:43]} Bc5 {[%emt 0:16:35]} 17. Ne2 {[%emt 0:11:44]} Ne5 {[%emt 0:03:36]} 18. Qf4 {[%emt 0:11:22]} Bh3 {[%emt 0:12:46]} 19. Bf6 {[%emt 0:09:55]} Nxd3 {[%emt 0:18:39]} 20. cxd3 {[%emt 0:00:57]} Qg4 {[%emt 0:01:51]} 21. Qxg4 {[%emt 0:00:58]} Bxg4 {[%emt 0:00:40]} 22. Nf4 {[%emt 0:01:08]} Bf3 {[%emt 0:03:19]} 23. Kh2 {[%emt 0:02:04]} Kd7 {[%emt 0:01:49]} 24. a3 {[%emt 0:02:00]} Rg4 {[%emt 0:02:35]} 25. d4 {[%emt 0:02:28]} Bb6 {[%emt 0:02:10]} 26. Rae1 {[%emt 0:01:03]} Rgg8 {[%emt 0:06:32]} 27. Re3 {[%emt 0:02:39]} Bg4 {[%emt 0:00:17]} 28. Rc3 {[%emt 0:00:44]} Rae8 {[%emt 0:01:43]} 29. f3 {[%emt 0:00:36]} Be6 {[%emt 0:00:43]} 30. b4 {[%emt 0:01:04]} a5 {[%emt 0:01:35]} 31. Rfc1 {[%emt 0:01:38]} Kc8 {[%emt 0:01:14]} 32. Rxc6 {[%emt 0:00:52]} Kb7 {[%emt 0:00:11]} 33. bxa5 {[%emt 0:01:45]} Bxa5 {[%emt 0:00:12]} 34. d5 {[%emt 0:01:25]} Bd7 {[%emt 0:00:18]} 35. Rb1+ {[%emt 0:00:32]} Bb6 {[%emt 0:00:44]} 36. Rc3 {[%emt 0:00:35]} Ra8 {[%emt 0:00:35]} 37. Rcb3 {[%emt 0:00:29]} Ra4 {[%emt 0:00:52]} 38. Rb4 {[%emt 0:01:26]} Rxa3 {[%emt 0:01:57]} 39. Bd4 {[%emt 0:00:09]} Ra2+ {[%emt 0:02:19]} 40. R4b2 {[%emt 0:02:19]} Rxb2+ {[%emt 0:00:25]} 41. Rxb2 {[%emt 0:30:11]} f5 {[%emt 0:33:30]} 42. exf5 {[%emt 0:00:00]} Bxf5 {[%emt 0:00:00]} 43. Nxh5 {[%emt 0:00:00]} Ka6 {[%emt 0:00:00]} 44. Bxb6 {[%emt 0:00:00]} cxb6 {[%emt 0:00:00]} 45. g4 {[%emt 0:00:00]} Bd3 {[%emt 0:00:00]} 46. Nf4 {[%emt 0:00:00]} Bc4 {[%emt 0:00:00]} 47. Kg3 {[%emt 0:00:00]} b5 1/2-1/2

[Event "CZE-ch Youth B14 2022"]
[Site "Luhacovice"]
[Date "2022.03.18"]
[Round "8.9"]
[White "Kubin, Tomas Daniel"]
[Black "Siles, Jan"]
[Result "0-1"]
[ECO "B35"]
[WhiteElo "1666"]
[BlackElo "1548"]
[Annotator "NA"]
[PlyCount "112"]
[EventDate "2022.03.12"]
[EventType "swiss"]
[EventCountry "CZE"]
[SourceTitle "playchess.com"]
[Source "ChessBase"]
[SourceQuality "1"]
[TimeControl "40/5400+30:1800+30"]

1. e4 {[%emt 0:00:08]} c5 {[%emt 0:00:21]} 2. Nf3 {[%emt 0:00:12]} Nc6 {[%emt 0:00:12]} 3. d4 {[%emt 0:00:11]} cxd4 {[%emt 0:00:28]} 4. Nxd4 {[%emt 0:00:10]} g6 {[%emt 0:00:27]} 5. Nc3 {[%emt 0:00:19]} Bg7 {[%emt 0:00:46]} 6. Be3 {[%emt 0:00:11]} Nf6 {[%emt 0:00:51]} 7. Bc4 {[%emt 0:00:51]} O-O {[%emt 0:01:11]} 8. Bb3 {[%emt 0:00:12]} d6 {[%emt 0:02:10]} 9. h3 {[%emt 0:00:22]} Bd7 {[%emt 0:00:36]} 10. O-O {[%emt 0:00:16]} Rc8 {[%emt 0:04:13]} 11. Re1 {[%emt 0:06:11]} a6 {[%emt 0:05:52]} 12. f4 {[%emt 0:08:04]} Nh5 {[%emt 0:12:52]} 13. Nxc6 {[%emt 0:12:17]} Bxc6 {[%emt 0:00:33]} 14. Qd3 {[%emt 0:05:20]} b5 15. g4 {[%emt 0:08:11]} Nf6 {[%emt 0:09:03]} 16. Nd5 {[%emt 0:01:39]} Nd7 {[%emt 0:10:57]} 17. Bd4 {[%emt 0:18:09]} e5 {[%emt 0:05:04]} 18. fxe5 {[%emt 0:04:07]} Nxe5 {[%emt 0:00:56]} 19. Bxe5 {[%emt 0:01:36]} Bxe5 {[%emt 0:00:12]} 20. c3 {[%emt 0:00:36]} h5 {[%emt 0:13:46]} 21. gxh5 {[%emt 0:07:01]} Kh7 {[%emt 0:01:06]} 22. Kh1 {[%emt 0:02:30]} Qh4 {[%emt 0:02:09]} 23. Qf3 {[%emt 0:10:43]} Bd7 {[%emt 0:06:07]} 24. Re3 {[%emt 0:00:47]} Rb8 {[%emt 0:08:20]} 25. Rg1 {[%emt 0:02:42]} gxh5 {[%emt 0:02:02]} 26. Bd1 {[%emt 0:01:20]} Kh6 {[%emt 0:02:32]} 27. Ne7 {[%emt 0:01:25]} Bf4 {[%emt 0:00:45]} 28. Rd3 {[%emt 0:00:47]} Rbe8 {[%emt 0:03:49]} 29. Rd5 {[%emt 0:01:48]} Be5 {[%emt 0:01:56]} 30. Nf5+ {[%emt 0:02:24]} Bxf5 {[%emt 0:00:07]} 31. Qxf5 {[%emt 0:00:14]} Rg8 {[%emt 0:01:26]} 32. Rxg8 {[%emt 0:02:34]} Rxg8 {[%emt 0:00:01]} 33. Qf1 {[%emt 0:00:46]} Qxe4+ {[%emt 0:02:37]} 34. Bf3 {[%emt 0:00:01]} Qf4 {[%emt 0:00:34]} 35. Qf2 {[%emt 0:00:54]} Rg3 {[%emt 0:00:53]} 36. Rd3 {[%emt 0:01:43]} Rxh3+ {[%emt 0:01:44]} 37. Kg1 {[%emt 0:00:02]} Qg3+ {[%emt 0:00:31]} 38. Qxg3 {[%emt 0:00:39]} Rxg3+ {[%emt 0:00:03]} 39. Kf2 {[%emt 0:00:05]} h4 {[%emt 0:00:25]} 40. Rd1 {[%emt 0:01:13]} Kg5 {[%emt 0:00:55]} 41. Rg1 {[%emt 0:03:22]} b4 {[%emt 0:06:20]} 42. Rxg3+ {[%emt 0:03:41]} hxg3+ {[%emt 0:01:16]} 43. Kg2 {[%emt 0:00:26]} bxc3 {[%emt 0:00:20]} 44. bxc3 {[%emt 0:00:06]} Kf4 {[%emt 0:04:19]} 45. c4 {[%emt 0:01:16]} Ke3 {[%emt 0:00:33]} 46. Bb7 {[%emt 0:01:08]} a5 {[%emt 0:00:35]} 47. a4 {[%emt 0:00:21]} f5 {[%emt 0:00:25]} 48. Bc6 {[%emt 0:03:11]} f4 {[%emt 0:02:29]} 49. Bb7 {[%emt 0:01:38]} Kd4 {[%emt 0:00:41]} 50. Ba6 {[%emt 0:00:34]} d5 {[%emt 0:00:38]} 51. cxd5 {[%emt 0:00:35]} Ke3 {[%emt 0:00:06]} 52. d6 {[%emt 0:02:10]} f3+ {[%emt 0:00:12]} 53. Kg1 {[%emt 0:01:52]} Bxd6 {[%emt 0:00:55]} 54. Bb5 {[%emt 0:00:45]} g2 {[%emt 0:00:44]} 55. Bc6 {[%emt 0:01:32]} Bc5 {[%emt 0:00:35]} 56. Kh2 {[%emt 0:01:24]} Kf2 {[%emt 0:00:59]} 0-1

[Event "CZE-ch Youth B14 2022"]
[Site "Luhacovice"]
[Date "2022.03.18"]
[Round "8.10"]
[White "Sigut, Ondrej"]
[Black "Juracak, David"]
[Result "1/2-1/2"]
[ECO "C43"]
[WhiteElo "1536"]
[BlackElo "1717"]
[Annotator "NA"]
[PlyCount "62"]
[EventDate "2022.03.12"]
[EventType "swiss"]
[EventCountry "CZE"]
[SourceTitle "playchess.com"]
[Source "ChessBase"]
[SourceQuality "1"]
[TimeControl "40/5400+30:1800+30"]

1. e4 {[%emt 0:00:03]} e5 {[%emt 0:00:06]} 2. Nf3 {[%emt 0:00:05]} Nf6 {[%emt 0:00:05]} 3. d4 {[%emt 0:00:19]} Nxe4 {[%emt 0:00:10]} 4. Bd3 {[%emt 0:00:08]} d5 {[%emt 0:00:25]} 5. Nxe5 {[%emt 0:00:27]} Bd6 {[%emt 0:02:37]} 6. O-O {[%emt 0:04:49]} O-O {[%emt 0:01:42]} 7. Nd2 {[%emt 0:01:53]} Nxd2 {[%emt 0:13:51]} 8. Bxd2 {[%emt 0:00:15]} Nd7 {[%emt 0:00:14]} 9. Nxd7 {[%emt 0:00:41]} Bxd7 {[%emt 0:00:36]} 10. Qh5 {[%emt 0:00:22]} f5 {[%emt 0:00:15]} 11. Rae1 {[%emt 0:02:03]} Qf6 {[%emt 0:01:11]} 12. c3 {[%emt 0:01:09]} Rae8 {[%emt 0:00:17]} 13. Bg5 {[%emt 0:10:19]} Qf7 {[%emt 0:00:26]} 14. Qf3 {[%emt 0:04:07]} c6 {[%emt 0:09:17]} 15. Bf4 {[%emt 0:03:31]} Bxf4 {[%emt 0:00:34]} 16. Qxf4 {[%emt 0:00:02]} Bc8 {[%emt 0:02:24]} 17. Qd2 {[%emt 0:09:15]} Qc7 {[%emt 0:10:02]} 18. Rxe8 {[%emt 0:03:34]} Rxe8 {[%emt 0:00:45]} 19. Re1 {[%emt 0:01:48]} Rxe1+ {[%emt 0:00:36]} 20. Qxe1 {[%emt 0:01:54]} Kf7 {[%emt 0:00:07]} 21. Qe2 {[%emt 0:02:52]} g6 {[%emt 0:00:21]} 22. g3 {[%emt 0:01:20]} Qe7 {[%emt 0:00:42]} 23. Qxe7+ {[%emt 0:03:43]} Kxe7 {[%emt 0:00:06]} 24. f4 {[%emt 0:00:41]} h6 {[%emt 0:02:01]} 25. Kg2 {[%emt 0:04:55]} Kf6 {[%emt 0:01:12]} 26. Kf3 {[%emt 0:02:10]} g5 {[%emt 0:01:09]} 27. fxg5+ {[%emt 0:01:24]} hxg5 {[%emt 0:00:32]} 28. h4 {[%emt 0:00:57]} Bd7 {[%emt 0:00:13]} 29. a3 {[%emt 0:05:20]} Be6 {[%emt 0:04:17]} 30. b4 {[%emt 0:07:40]} b5 {[%emt 0:01:01]} 31. Bc2 {[%emt 0:09:22]} Bd7 {[%emt 0:00:22]} 1/2-1/2

[Event "CZE-ch Youth B14 2022"]
[Site "Luhacovice"]
[Date "2022.03.18"]
[Round "8.11"]
[White "Tesar, Jakub"]
[Black "Mrazek, Adam"]
[Result "0-1"]
[ECO "B38"]
[WhiteElo "1660"]
[BlackElo "1582"]
[Annotator "NA"]
[PlyCount "70"]
[EventDate "2022.03.12"]
[EventType "swiss"]
[EventCountry "CZE"]
[SourceTitle "playchess.com"]
[Source "ChessBase"]
[SourceQuality "1"]
[TimeControl "40/5400+30:1800+30"]

1. e4 {[%emt 0:00:05]} c5 {[%emt 0:00:08]} 2. Nf3 {[%emt 0:00:08]} Nc6 {[%emt 0:00:11]} 3. d4 {[%emt 0:00:15]} cxd4 {[%emt 0:00:10]} 4. Nxd4 {[%emt 0:00:13]} g6 {[%emt 0:01:11]} 5. c4 {[%emt 0:00:12]} Bg7 {[%emt 0:00:06]} 6. Be3 {[%emt 0:00:08]} Nf6 {[%emt 0:00:07]} 7. Nc3 {[%emt 0:00:08]} O-O {[%emt 0:00:13]} 8. Be2 {[%emt 0:00:13]} d6 {[%emt 0:00:26]} 9. h3 {[%emt 0:00:30]} Bd7 {[%emt 0:00:59]} 10. O-O {[%emt 0:00:28]} Rc8 {[%emt 0:01:52]} 11. Qd2 {[%emt 0:04:40]} Nxd4 {[%emt 0:02:20]} 12. Bxd4 {[%emt 0:00:23]} Bc6 {[%emt 0:01:18]} 13. Qc2 {[%emt 0:04:11]} Nd7 {[%emt 0:03:24]} 14. Bxg7 {[%emt 0:01:30]} Kxg7 {[%emt 0:00:46]} 15. Rfd1 {[%emt 0:03:42]} a5 {[%emt 0:08:28]} 16. b3 {[%emt 0:02:39]} Qb6 {[%emt 0:02:37]} 17. Nd5 {[%emt 0:05:22]} Bxd5 {[%emt 0:01:00]} 18. Rxd5 {[%emt 0:00:16]} Nf6 {[%emt 0:09:52]} 19. Rb5 {[%emt 0:04:32]} Qxb5 {[%emt 0:02:17]} 20. Qb2 {[%emt 0:00:19]} Qe5 {[%emt 0:00:39]} 21. Qc1 {[%emt 0:00:28]} Nxe4 {[%emt 0:03:10]} 22. Bf3 {[%emt 0:02:04]} Nc5 {[%emt 0:01:08]} 23. Qf1 {[%emt 0:00:46]} Rfd8 {[%emt 0:01:13]} 24. Re1 {[%emt 0:01:05]} Qf6 {[%emt 0:00:31]} 25. Qe2 {[%emt 0:01:53]} e6 {[%emt 0:01:15]} 26. Qd2 {[%emt 0:00:27]} d5 {[%emt 0:02:07]} 27. cxd5 {[%emt 0:01:16]} exd5 {[%emt 0:00:18]} 28. Qxa5 {[%emt 0:00:16]} Qa6 {[%emt 0:06:52]} 29. Qd2 {[%emt 0:02:24]} Ne4 {[%emt 0:02:03]} 30. Qb2+ {[%emt 0:03:37]} Qf6 {[%emt 0:00:13]} 31. Qa3 {[%emt 0:00:22]} Rc2 {[%emt 0:00:21]} 32. Qa7 {[%emt 0:08:36]} Qc3 {[%emt 0:01:59]} 33. Re3 {[%emt 0:02:55]} Qa1+ {[%emt 0:03:31]} 34. Kh2 {[%emt 0:00:12]} Qe5+ {[%emt 0:00:06]} 35. g3 {[%emt 0:00:44]} Qxg3+ {[%emt 0:00:15]} 0-1

[Event "CZE-ch Youth B14 2022"]
[Site "Luhacovice"]
[Date "2022.03.18"]
[Round "8.12"]
[White "Davidek, Zdenek"]
[Black "Veverka, Vladimir"]
[Result "1-0"]
[ECO "C06"]
[WhiteElo "1570"]
[BlackElo "1723"]
[Annotator "NA"]
[PlyCount "41"]
[EventDate "2022.03.12"]
[EventType "swiss"]
[EventCountry "CZE"]
[SourceTitle "playchess.com"]
[Source "ChessBase"]
[SourceQuality "1"]
[TimeControl "40/5400+30:1800+30"]

1. e4 e6 2. d4 d5 3. Nd2 Nf6 4. e5 Nfd7 5. Bd3 c5 6. c3 Nc6 7. Ne2 cxd4 8. cxd4 f6 9. exf6 Nxf6 10. Nf3 Bd6 11. O-O Qc7 12. Bg5 O-O 13. Rc1 a6 14. Ng3 Bd7 15. Re1 Rae8 16. Ne5 h6 17. Bxf6 Rxf6 18. Nh5 Bxe5 19. dxe5 Rff8 20. Qg4 Re7 21. Qg6 1-0

[Event "CZE-ch Youth B14 2022"]
[Site "Luhacovice"]
[Date "2022.03.19"]
[Round "9.1"]
[White "Hladky, Tadeas"]
[Black "Dusanek, Michal"]
[Result "1-0"]
[ECO "B28"]
[WhiteElo "2029"]
[BlackElo "1682"]
[Annotator "ChessBase"]
[PlyCount "39"]
[EventDate "2022.03.12"]
[EventType "swiss"]
[EventCountry "CZE"]
[SourceTitle "playchess.com"]
[Source "ChessBase"]
[SourceQuality "1"]
[TimeControl "40/5400+30:1800+30"]

1. e4 {[%emt 0:00:03]} c5 {[%emt 0:00:06]} 2. Nf3 {[%emt 0:00:03]} a6 {[%emt 0:00:06]} 3. c3 {[%emt 0:00:16]} d5 {[%emt 0:00:08]} 4. exd5 {[%emt 0:00:25]} Qxd5 {[%emt 0:00:12]} 5. d4 {[%emt 0:00:41]} Nf6 {[%emt 0:00:52]} 6. Be2 {[%emt 0:00:13]} g6 {[%emt 0:00:41]} 7. Be3 {[%emt 0:01:21]} cxd4 {[%emt 0:00:38]} 8. cxd4 {[%emt 0:00:42]} Bg7 {[%emt 0:00:35]} 9. O-O {[%emt 0:01:26]} O-O {[%emt 0:00:25]} 10. Nc3 {[%emt 0:00:10]} Qd6 {[%emt 0:03:17]} 11. Ne5 {[%emt 0:08:37]} Nc6 {[%emt 0:13:13]} 12. Nc4 {[%emt 0:01:19]} Qc7 {[%emt 0:15:17]} 13. d5 {[%emt 0:05:57]} Ne5 {[%emt 0:04:48]} 14. d6 {[%emt 0:19:36]} exd6 {[%emt 0:02:01]} 15. Nb6 {[%emt 0:06:55]} Rb8 {[%emt 0:01:57]} 16. Ncd5 {[%emt 0:00:39]} Qd8 {[%emt 0:14:48]} 17. Nxf6+ {[%emt 0:14:07]} Bxf6 {[%emt 0:07:53]} 18. Nd5 {[%emt 0:02:11]} Bg7 {[%emt 0:00:41]} 19. Bb6 {[%emt 0:00:50]} Qg5 {[%emt 0:05:52]} 20. f4 {[%emt 0:01:59]} 1-0

[Event "CZE-ch Youth B14 2022"]
[Site "Luhacovice"]
[Date "2022.03.19"]
[Round "9.2"]
[White "Prazak, Daniel"]
[Black "Buchta, Bartolomej"]
[Result "1-0"]
[ECO "B30"]
[WhiteElo "2016"]
[BlackElo "1901"]
[Annotator "ChessBase"]
[PlyCount "75"]
[EventDate "2022.03.12"]
[EventType "swiss"]
[EventCountry "CZE"]
[SourceTitle "playchess.com"]
[Source "ChessBase"]
[SourceQuality "1"]
[TimeControl "40/5400+30:1800+30"]

1. e4 {[%emt 0:00:03]} c5 {[%emt 0:00:08]} 2. Nf3 {[%emt 0:00:03]} Nc6 {[%emt 0:00:08]} 3. Nc3 {[%emt 0:02:39]} e6 {[%emt 0:00:48]} 4. Bb5 {[%emt 0:00:30]} Nge7 {[%emt 0:02:22]} 5. O-O {[%emt 0:00:27]} Ng6 {[%emt 0:01:15]} 6. d4 {[%emt 0:00:33]} a6 {[%emt 0:01:58]} 7. Bxc6 {[%emt 0:05:49]} bxc6 {[%emt 0:00:06]} 8. d5 {[%emt 0:06:04]} cxd5 {[%emt 0:00:42]} 9. exd5 {[%emt 0:00:01]} d6 {[%emt 0:00:25]} 10. dxe6 {[%emt 0:06:49]} fxe6 {[%emt 0:03:52]} 11. h4 {[%emt 0:14:59]} Be7 {[%emt 0:15:17]} 12. h5 {[%emt 0:02:59]} Nh4 {[%emt 0:02:07]} 13. Nxh4 {[%emt 0:02:43]} Bxh4 {[%emt 0:00:06]} 14. Ne4 {[%emt 0:10:07]} Be7 {[%emt 0:05:10]} 15. Qf3 {[%emt 0:03:12]} d5 {[%emt 0:02:04]} 16. Rd1 {[%emt 0:04:01]} Bd7 {[%emt 0:03:58]} 17. Nc3 {[%emt 0:01:58]} Bc6 {[%emt 0:12:35]} 18. h6 {[%emt 0:12:06]} g6 {[%emt 0:02:16]} 19. Ne4 {[%emt 0:00:40]} Rf8 {[%emt 0:07:49]} 20. Qh3 {[%emt 0:07:23]} Qc8 {[%emt 0:10:07]} 21. Ng5 {[%emt 0:01:00]} Bxg5 {[%emt 0:00:16]} 22. Bxg5 {[%emt 0:00:01]} Rf5 {[%emt 0:07:38]} 23. g4 {[%emt 0:01:07]} Re5 {[%emt 0:07:58]} 24. Re1 {[%emt 0:00:42]} Qc7 {[%emt 0:01:41]} 25. f4 {[%emt 0:00:32]} Rxe1+ {[%emt 0:02:00]} 26. Rxe1 {[%emt 0:00:01]} Qf7 {[%emt 0:04:54]} 27. Qc3 {[%emt 0:00:31]} c4 {[%emt 0:01:02]} 28. Qe5 {[%emt 0:03:55]} Kd7 {[%emt 0:00:40]} 29. f5 {[%emt 0:00:34]} gxf5 {[%emt 0:02:51]} 30. Bf4 {[%emt 0:00:15]} Kc8 {[%emt 0:01:51]} 31. gxf5 {[%emt 0:00:56]} exf5 {[%emt 0:00:13]} 32. Qd6 {[%emt 0:01:15]} Qg6+ {[%emt 0:01:33]} 33. Qxg6 {[%emt 0:00:02]} hxg6 {[%emt 0:00:03]} 34. Re7 {[%emt 0:00:02]} Kd8 {[%emt 0:00:59]} 35. Bg5 {[%emt 0:00:12]} Bd7 {[%emt 0:00:20]} 36. h7 {[%emt 0:00:42]} Kc7 {[%emt 0:00:08]} 37. Bf4+ {[%emt 0:00:09]} Kc6 {[%emt 0:00:27]} 38. Be5 {[%emt 0:00:03]} 1-0